bitfinex/quotes_ETHUSD_20241204
["timestamp","ask_amount","ask_price","bid_price","bid_amount"]
[1733329613514,0.01324,3777.2,3775.6,3.0]
[1733329613668,0.01324,3777.2,3777.1,2.64753]
[1733329613862,9.99,3779.0,3777.8,2.64704]
[1733329614133,0.31795463,3778.7,3778.6,3.2635]
[1733329614266,0.1636856,3783.4,3783.3,2.64319]
[1733329614582,0.1636856,3783.4,3783.3,5.64319]
[1733329614583,0.18317131,3783.4,3783.3,5.64319]
[1733329614763,0.02647875,3785.9,3783.5,2.643]
[1733329615065,3.71140008,3784.9,3781.2,4.6567]
[1733329615408,0.39761876,3784.8,3781.9,2.64412]
[1733329615620,0.39761876,3784.8,3781.2,1.6567]
[1733329615621,0.53773092,3783.7,3782.0,0.06043665]
[1733329615928,0.53773092,3783.7,3779.4,0.1]
[1733329615929,0.02647875,3783.6,3780.4,1.651]
[1733329616226,0.02647875,3783.6,3779.1,2.64611]
[1733329616227,0.52729828,3782.5,3779.1,2.64611]
[1733329616511,0.02647875,3782.4,3780.2,2.64529]
[1733329616666,0.02647875,3782.4,3779.8,2.64561]
[1733329616667,0.51813663,3781.9,3779.8,2.64561]
[1733329616877,0.02647875,3781.8,3780.7,2.64497]
[1733329617107,0.55,3782.3,3781.0,2.64477]
[1733329617268,0.02647875,3782.9,3780.7,2.64494]
[1733329617470,0.02647875,3782.9,3779.7,0.02022319]
[1733329617471,0.53031686,3783.0,3781.4,2.64447]
[1733329617715,1.6306,3782.8,3781.5,2.64442]
[1733329618032,0.24521831,3782.7,3781.7,2.64428]
[1733329618170,0.21873956,3782.7,3782.1,2.644]
[1733329618375,0.21873956,3782.7,3780.7,8.29002]
[1733329618376,0.21873956,3782.7,3782.0,2.64409]
[1733329618601,0.02647875,3782.6,3781.7,2.6443]
[1733329618769,0.21873956,3782.7,3781.0,3.0]
[1733329618970,0.18758183,3782.6,3781.9,2.64414]
[1733329619166,0.18758183,3782.6,3782.1,2.644]
[1733329619510,0.02647875,3784.7,3782.3,3.0]
[1733329619814,0.02647875,3784.7,3783.7,2.64288]
[1733329619984,0.02647875,3784.7,3782.2,2.64392]
[1733329619985,0.52994616,3784.5,3781.9,3.0]
[1733329620196,0.02647875,3784.4,3782.8,2.64352]
[1733329620540,0.02647875,3784.4,3782.5,2.64375]
[1733329620685,0.2,3784.1,3780.2,1.5382]
[1733329620892,1.5888,3783.9,3781.5,2.64442]
[1733329621109,1.5888,3783.9,3780.2,4.18353]
[1733329621110,0.02647875,3783.8,3780.2,4.18353]
[1733329621292,1.6322,3783.2,3779.4,2.64592]
[1733329621493,0.55,3782.7,3779.9,2.64554]
[1733329621794,0.53810426,3781.7,3779.3,2.64597]
[1733329621995,1.6322,3781.4,3779.3,2.64593]
[1733329622247,0.55,3781.1,3780.4,2.64519]
[1733329622408,0.55,3781.1,3780.9,2.64484]
[1733329623143,0.55,3781.1,3779.3,2.64596]
[1733329623144,0.57647875,3781.1,3780.0,2.64549]
[1733329623296,0.57647875,3781.1,3779.3,1.5997]
[1733329623490,0.55,3781.1,3779.8,3.0]
[1733329623825,0.55,3780.9,3779.8,2.64559]
[1733329624144,0.02647875,3780.8,3779.8,2.64559]
[1733329624339,0.55,3780.9,3780.2,2.64536]
[1733329624542,0.55,3780.9,3778.8,2.64634]
[1733329624838,0.02647875,3780.8,3779.2,2.64601]
[1733329625043,0.02647875,3780.8,3779.4,2.64588]
[1733329625196,0.55,3780.9,3778.6,2.64648]
[1733329625395,1.6322,3781.2,3781.0,2.64475]
[1733329625836,1.5802,3782.4,3781.5,2.64443]
[1733329626047,0.02647875,3782.3,3780.5,3.0]
[1733329626238,0.02647875,3782.3,3779.5,2.6458]
[1733329626239,0.02647875,3782.3,3779.5,3.0]
[1733329626532,1.5652,3782.2,3779.5,3.0]
[1733329626741,1.5652,3780.8,3778.5,2.64655]
[1733329626947,1.5652,3780.8,3776.9,0.3]
[1733329626948,0.02647875,3780.7,3777.6,1.5822]
[1733329627147,0.55,3780.7,3777.9,1.058945]
[1733329627313,0.53477546,3781.5,3778.6,2.64648]
[1733329627516,0.17916788,3782.1,3778.7,0.02644871]
[1733329627700,1.5223,3783.0,3779.7,0.3]
[1733329627896,1.5223,3783.0,3779.3,1.5103]
[1733329627897,1.5223,3783.0,3780.8,1.5103]
[1733329628098,0.61695595,3785.8,3780.8,1.5103]
[1733329628099,1.5223,3783.9,3783.0,2.64339]
[1733329628326,0.02647875,3783.8,3782.6,2.64366]
[1733329628494,0.02647875,3783.8,3782.0,3.0]
[1733329628495,0.15487788,3783.7,3782.1,2.64403]
[1733329628840,0.15487788,3783.7,3782.8,2.64351]
[1733329629009,0.15487788,3783.7,3782.0,3.0]
[1733329629211,0.15487788,3783.7,3783.1,2.64331]
[1733329629505,0.15487788,3783.7,3782.3,2.64389]
[1733329629691,0.15487788,3783.7,3782.2,3.0]
[1733329629692,0.15487788,3783.7,3783.3,2.64316]
[1733329629895,0.15487788,3783.7,3781.9,3.0]
[1733329630093,0.02647875,3784.4,3782.5,4.5352]
[1733329630339,1.5672,3784.6,3782.9,3.0]
[1733329630503,1.5672,3784.6,3784.1,2.64257]
[1733329630699,1.5672,3784.6,3783.2,2.64326]
[1733329630700,0.02647875,3784.5,3783.8,2.64283]
[1733329630941,0.15936787,3784.4,3782.8,3.0]
[1733329631107,1.5672,3784.6,3784.4,2.64236]
[1733329631618,1.5672,3784.6,3783.2,3.0]
[1733329631826,0.02647875,3784.5,3783.5,3.0]
[1733329631993,0.02647875,3784.5,3782.3,2.64384]
[1733329631994,0.02647875,3784.5,3783.4,3.0]
[1733329632197,0.02647875,3784.5,3783.0,3.0]
[1733329632422,0.15936787,3784.4,3783.3,3.0]
[1733329632660,0.02647875,3784.3,3781.8,1.5559]
[1733329632870,0.57647875,3784.3,3782.6,3.0]
[1733329633074,0.57647875,3784.3,3781.9,2.65957579]
[1733329633075,0.15936787,3784.4,3782.5,3.0]
[1733329633240,0.15936787,3784.4,3781.8,1.5559]
[1733329633241,0.15936787,3784.4,3782.9,3.0]
[1733329633621,0.15936787,3784.4,3783.0,3.0]
[1733329633826,0.15936787,3784.4,3774.8,6.23703205]
[1733329633827,0.15936787,3784.4,3782.9,2.64343]
[1733329634023,0.02647875,3784.3,3783.0,3.0]
[1733329634251,0.02647875,3784.3,3782.5,3.0]
[1733329634463,0.02647875,3784.3,3783.3,2.64315]
[1733329634719,0.15936787,3784.4,3783.0,3.0]
[1733329634926,0.15936787,3784.4,3783.2,3.0]
[1733329634927,0.02647875,3784.3,3783.2,3.0]
[1733329635126,0.15936787,3784.4,3781.8,1.7559]
[1733329635329,1.5672,3784.6,3781.8,1.7559]
[1733329635330,1.5672,3784.6,3784.3,2.64249]
[1733329635557,0.27286925,3784.9,3783.9,3.0]
[1733329635759,0.27286925,3784.9,3783.6,3.0]
[1733329635974,0.27286925,3784.9,3784.7,2.64215]
[1733329636158,1.6538,3786.8,3784.6,3.0]
[1733329636329,0.16538,3786.7,3784.5,3.0]
[1733329636529,0.16538,3786.7,3784.9,3.0]
[1733329636764,1.581,3786.5,3782.8,2.64354]
[1733329636970,0.53747356,3786.3,3784.3,3.0]
[1733329637137,0.02647875,3786.2,3784.4,3.0]
[1733329637345,0.53747356,3786.3,3783.9,3.0]
[1733329637545,0.24097398,3786.2,3784.3,3.0]
[1733329637765,0.21449523,3786.2,3785.9,2.64136]
[1733329637930,0.21449523,3786.2,3784.3,2.64249]
[1733329637931,0.21449523,3786.2,3785.3,2.64174]
[1733329638135,0.21449523,3786.2,3786.0,2.64128]
[1733329638458,0.21449523,3786.2,3784.9,2.64205]
[1733329638459,0.21449523,3786.2,3785.5,3.0]
[1733329638630,0.21449523,3786.2,3786.0,2.64128]
[1733329638831,0.21449523,3786.2,3785.0,3.0]
[1733329639063,0.21449523,3786.2,3786.0,2.6413]
[1733329639245,0.2731052,3786.8,3785.8,2.64143]
[1733329639580,0.2731052,3786.8,3775.6,16.0190412]
[1733329639581,0.2731052,3786.8,3786.3,2.64104]
[1733329639729,0.02647875,3786.7,3786.3,2.64104]
[1733329639933,0.02647875,3787.1,3785.8,2.6414]
[1733329640146,1.5666,3787.0,3784.0,1.5887]
[1733329640374,0.20215519,3786.9,3784.0,1.5887]
[1733329640531,1.5666,3786.8,3784.1,2.66232462]
[1733329640733,0.02647875,3786.7,3784.0,1.5887]
[1733329641036,0.55,3786.5,3784.0,1.5887]
[1733329641234,0.57647875,3786.5,3785.4,2.64168]
[1733329641585,1.5666,3786.8,3784.0,1.5887]
[1733329641873,0.17422764,3786.7,3786.2,2.64116]
[1733329642079,0.17422764,3786.7,3786.4,2.641]
[1733329642232,0.17422764,3786.7,3786.5,2.64095]
[1733329642436,0.17422764,3786.7,3785.9,2.64136]
[1733329642695,0.20056151,3786.6,3784.7,2.64215]
[1733329642830,0.20056151,3786.6,3785.1,2.64193]
[1733329643030,0.20056151,3786.6,3783.9,1.5966]
[1733329643031,0.17408276,3786.6,3783.9,1.5966]
[1733329643352,0.17408276,3786.6,3784.4,2.64242]
[1733329643552,0.17408276,3786.6,3783.9,1.7966]
[1733329643732,0.17408276,3786.6,3784.1,2.84263]
[1733329643937,1.5666,3786.8,3786.4,2.64097]
[1733329644173,0.1636856,3787.2,3786.6,2.64088]
[1733329644476,0.1636856,3787.2,3787.1,2.64054]
[1733329644685,0.1636856,3787.2,3786.2,3.0]
[1733329644899,0.1636856,3787.2,3785.8,3.0]
[1733329645072,0.1636856,3787.2,3786.5,2.64095]
[1733329645273,0.1636856,3787.2,3785.6,3.0]
[1733329645274,0.1636856,3787.2,3786.6,2.64083]
[1733329645582,0.1636856,3787.2,3786.7,2.64082]
[1733329645968,0.55,3787.1,3785.7,3.0]
[1733329646177,0.55,3787.1,3783.6,0.1]
[1733329646178,2.2099,3786.9,3783.0,1.5421]
[1733329646375,0.55,3786.0,3783.0,4.18544]
[1733329646688,0.55,3785.7,3783.3,2.64319]
[1733329646976,0.57647875,3785.7,3785.0,2.642]
[1733329647180,0.55,3785.7,3785.1,2.64193]
[1733329647398,0.55,3785.7,3783.7,0.02641858]
[1733329647399,0.55,3785.7,3785.3,2.64179]
[1733329647605,0.21253,3785.6,3785.5,2.64165]
[1733329647825,0.21253,3785.6,3784.5,2.64231]
[1733329647961,0.21253,3785.6,3780.3,1.26209269]
[1733329647962,0.57647875,3785.5,3784.8,2.64213]
[1733329648157,0.57647875,3785.5,3782.1,2.64398]
[1733329648363,0.21253,3785.6,3785.5,2.64165]
[1733329649523,1.5753,3785.8,3785.7,2.64151]
[1733329650015,1.5343,3787.0,3785.3,3.0]
[1733329650160,1.5343,3787.0,3785.6,3.0]
[1733329650363,1.5343,3787.0,3785.5,2.6416]
[1733329650364,1.5343,3787.0,3785.8,3.0]
[1733329650708,1.5343,3787.0,3785.5,2.6416]
[1733329650709,1.5343,3787.0,3786.4,2.64101]
[1733329651006,1.5343,3787.0,3785.6,3.0]
[1733329651007,0.86313195,3786.9,3785.9,2.64135]
[1733329651550,0.86313195,3786.9,3786.8,2.64075]
[1733329651954,0.86313195,3786.9,3785.6,1.5]
[1733329651955,0.86313195,3786.9,3786.3,3.0]
[1733329652160,0.86313195,3786.9,3785.3,1.056983]
[1733329652455,0.86313195,3786.9,3786.8,2.64075]
[1733329653311,3.33,3787.1,3787.0,2.64061]
[1733329653506,3.33,3787.1,3787.0,5.64061]
[1733329654114,2.50551954,3787.2,3787.1,5.64054]
[1733329654308,1.18527954,3787.2,3787.1,5.64054]
[1733329654935,0.53593082,3788.8,3788.6,2.63949]
[1733329655237,0.53593082,3788.8,3786.5,1.521]
[1733329655442,1.64537875,3788.6,3787.3,2.64037]
[1733329655647,0.29313096,3788.5,3787.5,2.64026]
[1733329655815,0.29313096,3788.5,3787.4,5.64027]
[1733329656008,0.29313096,3788.5,3787.5,2.64026]
[1733329656213,0.29313096,3788.5,3788.4,2.63963]
[1733329656437,2.57157693,3789.5,3788.6,2.63949]
[1733329656438,0.52014684,3789.1,3788.6,2.63949]
[1733329656637,1.6591,3789.3,3788.6,2.63949]
[1733329657769,1.6591,3789.3,3787.6,3.0]
[1733329657770,1.6591,3789.3,3788.0,2.63991]
[1733329657945,1.68557875,3789.3,3787.5,2.64026]
[1733329658257,0.52162483,3789.2,3788.6,2.63949]
[1733329658442,0.55,3788.6,3788.0,2.63988]
[1733329658686,0.55,3788.4,3786.3,2.64107]
[1733329658858,0.21235,3788.3,3787.4,2.64031]
[1733329659057,0.57647875,3788.2,3786.7,2.64075]
[1733329659318,0.57647875,3788.2,3786.8,2.64073]
[1733329659597,0.55,3788.2,3787.3,2.64037]
[1733329659798,0.55,3788.2,3786.5,2.64096]
[1733329660103,0.21235,3788.3,3786.5,2.64096]
[1733329660104,0.21235,3788.3,3787.8,2.64005]
[1733329660323,0.21235,3788.3,3788.2,2.63977]
[1733329661653,0.21235,3788.3,3788.0,2.6399]
[1733329661897,0.21235,3788.3,3787.9,2.63993]
[1733329662200,0.55,3788.2,3787.6,2.64018]
[1733329662792,0.55,3788.2,3787.6,2.64019]
[1733329663108,0.21235,3788.3,3787.1,2.6405]
[1733329663394,1.5735,3788.5,3788.4,2.63963]
[1733329663701,1.5735,3788.5,3788.4,3.0]
[1733329663860,1.5735,3788.5,3788.4,5.63963]
[1733329664057,1.5735,3788.5,3788.4,3.0]
[1733329664259,1.5735,3788.5,3787.5,3.0]
[1733329664473,0.55,3788.3,3787.5,3.0]
[1733329664690,0.55,3788.3,3786.3,2.64104]
[1733329664691,0.02647875,3788.2,3786.8,2.64069]
[1733329664893,0.02647875,3788.2,3786.1,5.28248]
[1733329665062,0.02647875,3788.2,3787.0,2.64061]
[1733329665264,0.55,3788.0,3785.7,1.5154]
[1733329665567,0.55,3787.8,3786.8,2.64073]
[1733329665791,0.55,3787.8,3785.7,1.5154]
[1733329665953,0.02647875,3787.7,3786.6,2.64086]
[1733329666218,0.02647875,3787.7,3785.7,4.15685]
[1733329666422,0.02647875,3787.7,3786.8,3.0]
[1733329666665,0.02647875,3787.7,3786.3,3.0]
[1733329666831,0.55,3787.8,3786.9,3.0]
[1733329667033,0.29072301,3787.8,3787.3,2.64033]
[1733329667372,0.29072301,3787.8,3786.1,3.0]
[1733329667522,2.09052929,3788.1,3788.0,2.63991]
[1733329667722,0.52922929,3788.1,3788.0,5.63991]
[1733329668958,1.5954,3788.8,3788.3,2.6397]
[1733329669179,0.23454,3788.6,3788.3,2.6397]
[1733329669317,0.23454,3788.6,3788.5,2.63956]
[1733329669523,0.23454,3788.6,3788.4,2.63961]
[1733329669721,0.23454,3788.6,3788.4,2.63959]
[1733329670263,0.23454,3788.6,3787.7,3.0]
[1733329670449,0.23454,3788.6,3781.6,6.23703205]
[1733329670450,0.257994,3788.5,3788.0,3.0]
[1733329670650,0.257994,3788.5,3787.3,2.64035]
[1733329670651,0.57647875,3788.4,3787.3,2.64035]
[1733329670958,1.07248854,3788.4,3787.7,2.64009]
[1733329671175,1.07248854,3788.4,3787.0,0.01577498]
[1733329671471,0.02647875,3788.3,3785.7,0.01609484]
[1733329671769,0.55,3788.1,3787.5,2.64022]
[1733329672069,1.75169613,3788.2,3785.8,1.556]
[1733329672070,1.75169613,3788.2,3786.5,2.64092]
[1733329672373,0.257994,3788.5,3787.7,2.64012]
[1733329672577,1.616,3788.9,3788.6,2.63949]
[1733329672877,0.52296382,3788.8,3788.6,2.63949]
[1733329673032,1.616,3788.9,3788.6,2.63949]
[1733329673233,1.616,3788.9,3788.6,5.63949]
[1733329674169,1.616,3788.9,3787.9,3.0]
[1733329674387,1.616,3788.9,3786.5,1.6659]
[1733329674388,2.14920869,3788.9,3788.6,2.63949]
[1733329674551,1.616,3788.9,3788.6,2.63949]
[1733329674935,1.616,3788.9,3788.1,3.0]
[1733329675265,0.2366,3788.6,3787.6,3.0]
[1733329675463,0.2366,3788.6,3787.9,3.0]
[1733329675782,0.2366,3788.6,3786.5,1.6659]
[1733329675783,0.57647875,3788.5,3786.5,1.6659]
[1733329675985,0.57647875,3788.5,3787.3,2.64038]
[1733329676183,0.57647875,3788.5,3786.5,1.6659]
[1733329676184,0.55,3788.3,3786.7,2.64082]
[1733329676481,0.55,3787.9,3786.5,1.6659]
[1733329676675,0.55,3787.9,3787.1,2.64052]
[1733329676891,0.55,3787.9,3787.0,2.64056]
[1733329677083,0.55,3787.9,3785.6,1.5766]
[1733329677249,0.55,3787.9,3786.9,2.64061]
[1733329677586,0.55,3787.9,3787.2,2.64046]
[1733329677796,0.55,3787.9,3785.6,1.5766]
[1733329677797,0.13551613,3787.9,3785.6,1.5766]
[1733329678075,0.13551613,3787.9,3786.6,2.64089]
[1733329678236,0.13551613,3787.9,3787.5,2.64024]
[1733329678436,0.13551613,3787.9,3787.3,3.0]
[1733329678833,0.13551613,3787.9,3786.3,2.64109]
[1733329678834,0.57647875,3787.8,3787.0,3.0]
[1733329679038,0.55,3787.8,3786.8,2.64068]
[1733329679269,0.55,3787.8,3786.4,3.0]
[1733329679452,0.55,3787.8,3787.0,2.64057]
[1733329679635,0.13551613,3787.9,3785.6,1.5766]
[1733329679837,0.13551613,3787.9,3787.2,2.64043]
[1733329680075,0.57647875,3787.8,3785.7,2.64151]
[1733329680243,0.55,3787.8,3787.3,2.64039]
[1733329680578,0.55,3787.8,3787.3,2.64038]
[1733329681252,0.55,3787.8,3786.0,2.64131]
[1733329681253,0.55,3787.6,3786.1,3.0]
[1733329681457,0.55,3787.4,3786.3,3.0]
[1733329681776,0.55,3787.4,3786.9,3.0]
[1733329681979,0.55,3787.4,3786.1,2.64117]
[1733329681980,0.02647875,3787.3,3786.1,2.64117]
[1733329682177,0.02647875,3787.3,3785.0,2.64196]
[1733329682178,0.55,3787.1,3785.0,2.64196]
[1733329682487,0.55,3786.8,3785.6,2.64158]
[1733329682780,0.53795437,3786.2,3784.8,1.057123]
[1733329682987,0.21098788,3786.7,3784.8,1.057123]
[1733329683196,2.06396126,3786.9,3784.9,3.00729096]
[1733329683361,2.06396126,3786.9,3786.8,2.64075]
[1733329683562,5.83596991,3789.6,3786.0,2.6413]
[1733329683563,1.5028,3787.6,3786.6,2.64089]
[1733329683767,1.5578,3788.3,3788.1,3.0]
[1733329683946,0.75,3788.7,3788.5,2.63955]
[1733329684146,0.75,3788.7,3788.6,2.63949]
[1733329684458,0.75,3788.7,3788.6,5.63949]
[1733329685924,0.75,3788.7,3788.3,2.63969]
[1733329686130,1.5526,3788.6,3787.5,3.0]
[1733329686297,0.25673875,3788.5,3786.9,3.0]
[1733329686622,0.25673875,3788.5,3786.5,1.5031]
[1733329686623,1.5526,3788.6,3788.5,2.63956]
[1733329686794,1.5526,3788.6,3788.1,3.0]
[1733329686996,0.57647875,3788.5,3787.8,3.0]
[1733329687229,0.55,3788.5,3788.0,2.6399]
[1733329687382,1.5526,3788.6,3787.9,2.63995]
[1733329687586,1.5526,3788.6,3787.6,3.0]
[1733329687587,1.78286,3788.6,3787.6,3.0]
[1733329687825,0.57647875,3788.5,3787.6,3.0]
[1733329687992,0.57647875,3788.5,3786.6,2.64089]
[1733329688328,0.57647875,3788.5,3786.0,4.23319]
[1733329688497,0.55,3788.1,3786.6,2.64085]
[1733329688687,0.55,3787.9,3786.4,2.64103]
[1733329688919,0.55,3787.7,3786.0,2.6413]
[1733329689225,1.512,3788.0,3787.9,2.63998]
[1733329689535,1.512,3788.0,3787.6,2.64012]
[1733329689730,1.512,3788.0,3786.3,2.64108]
[1733329689915,0.02647875,3787.9,3786.8,2.64074]
[1733329690154,0.15384788,3787.8,3785.4,1.58]
[1733329690456,1.6159,3787.7,3785.6,2.64158]
[1733329690668,0.53212045,3787.5,3786.7,2.6408]
[1733329690979,0.55,3787.4,3786.7,2.64081]
[1733329691318,0.55,3787.4,3785.4,4.22169]
[1733329691520,0.02647875,3787.3,3785.6,3.0]
[1733329691879,1.563,3787.2,3785.8,2.64141]
[1733329692163,0.55,3786.9,3785.4,0.013566]
[1733329692364,0.55,3786.9,3785.1,0.01357751]
[1733329692590,0.55,3786.9,3785.7,2.64148]
[1733329692770,3.88,3786.9,3786.8,2.64075]
[1733329693067,3.33,3786.9,3786.8,2.64075]
[1733329693423,3.33,3786.9,3786.8,5.64075]
[1733329693625,3.663,3786.9,3785.9,3.0]
[1733329693820,3.663,3786.9,3786.3,2.64104]
[1733329694067,3.663,3786.9,3785.4,2.64172]
[1733329694068,3.663,3786.9,3786.4,2.64101]
[1733329694271,3.33,3786.9,3786.3,3.0]
[1733329694584,0.55,3786.8,3785.6,3.0]
[1733329694739,0.55,3786.8,3786.6,2.64086]
[1733329695125,0.55,3786.8,3786.4,2.64102]
[1733329695325,0.55,3786.8,3786.5,2.64094]
[1733329695578,1.35092837,3786.8,3786.3,2.64109]
[1733329696079,1.32444962,3786.8,3785.8,3.0]
[1733329696286,0.55,3786.6,3786.1,3.0]
[1733329696575,1.611,3786.7,3785.4,3.0]
[1733329696778,2.56899458,3786.7,3785.8,5.64142]
[1733329696925,2.56899458,3786.7,3786.2,2.64115]
[1733329697370,0.57647875,3786.6,3785.5,3.0]
[1733329697535,2.56899458,3786.7,3785.8,3.0]
[1733329697743,6.66,3786.9,3786.8,2.64075]
[1733329697944,6.66,3786.9,3786.8,5.64075]
[1733329698530,0.0583,3786.9,3786.8,5.64075]
[1733329699190,1.5899,3788.3,3788.1,2.63982]
[1733329699354,1.5899,3788.3,3788.2,2.63977]
[1733329699676,0.75,3788.7,3788.6,2.63949]
[1733329700784,0.75,3788.7,3788.3,2.63966]
[1733329701083,1.00762875,3788.7,3787.2,2.64045]
[1733329701227,1.5615,3788.6,3787.2,2.64045]
[1733329701429,1.5615,3788.4,3786.5,2.6409]
[1733329701626,0.02647875,3788.3,3786.0,1.662]
[1733329701948,0.55,3788.1,3787.3,2.64037]
[1733329702263,0.53024901,3787.5,3785.4,1.662]
[1733329702575,0.55,3787.4,3786.8,2.64068]
[1733329702779,0.55,3787.0,3786.8,2.64068]
[1733329703178,0.55,3787.0,3786.3,2.64105]
[1733329703179,0.55,3786.8,3786.5,2.64091]
[1733329703343,0.57647875,3786.8,3786.5,2.64091]
[1733329703551,0.55,3786.8,3785.0,2.642]
[1733329703748,0.55,3786.8,3786.5,2.64092]
[1733329703964,0.55,3786.8,3784.9,1.5355]
[1733329703965,0.55,3786.8,3786.7,2.64082]
[1733329704158,1.5474,3786.9,3786.8,2.64075]
[1733329704358,3.33,3787.1,3787.0,2.64061]
[1733329704993,3.33,3787.1,3787.0,5.64061]
[1733329705197,6.66,3787.1,3787.0,5.64061]
[1733329707353,0.05865,3787.1,3787.0,5.64061]
[1733329708104,1e-05,3787.1,3787.0,7.25531]
[1733329708402,1e-05,3787.1,3787.0,5.64061]
[1733329708607,1e-05,3787.1,3787.0,7.25531]
[1733329709600,1.6427,3788.8,3788.6,2.63946]
[1733329709753,1.6427,3788.8,3787.3,3.0]
[1733329709754,2.72478483,3788.8,3788.7,2.63942]
[1733329709960,1.6427,3788.8,3788.7,2.63942]
[1733329710309,1.80697,3788.8,3786.3,1.6147]
[1733329710604,1.80697,3788.8,3788.3,2.6397]
[1733329710910,0.02647875,3788.7,3788.3,2.6397]
[1733329711201,0.02647875,3788.7,3786.4,2.64103]
[1733329711358,0.57647875,3788.7,3786.4,2.64103]
[1733329711580,0.55,3788.5,3788.4,2.63962]
[1733329712378,0.22191788,3788.6,3787.9,3.0]
[1733329712582,0.55,3788.7,3788.6,2.63949]
[1733329712780,0.55,3788.7,3788.6,5.63949]
[1733329712781,3.33,3788.7,3788.6,5.63949]
[1733329715078,3.33,3788.7,3786.2,0.264]
[1733329715297,1.6207,3788.5,3786.5,1.5575]
[1733329715495,0.57647875,3788.4,3788.1,2.63983]
[1733329715698,1.6207,3788.5,3786.5,1.5575]
[1733329716021,1.6207,3788.5,3788.4,2.63963]
[1733329716414,2.1707,3788.5,3787.8,3.0]
[1733329716646,0.57647875,3788.4,3786.1,2.64121]
[1733329716947,4.30843523,3788.4,3785.9,1.5429]
[1733329717151,0.55,3788.2,3785.9,1.5429]
[1733329717311,0.02647875,3788.1,3787.4,2.64026]
[1733329717497,0.57647875,3788.2,3786.2,2.64117]
[1733329717694,0.55,3788.0,3786.8,2.64069]
[1733329717939,0.55,3787.7,3785.3,2.64179]
[1733329718122,1.5382,3787.8,3785.2,1.6292]
[1733329718123,0.55,3787.4,3785.2,1.6292]
[1733329718297,0.55,3787.4,3787.3,2.6404]
[1733329719137,0.21146788,3787.6,3785.4,2.64172]
[1733329719308,0.55,3787.7,3787.5,2.64019]
[1733329719645,0.55,3787.7,3785.4,2.64172]
[1733329719646,0.55,3787.5,3784.5,0.2]
[1733329719843,0.55,3787.3,3784.8,2.64209]
[1733329719993,0.55,3787.3,3786.7,2.64075]
[1733329720451,1.5414,3787.4,3785.0,0.2]
[1733329720606,1.5414,3787.4,3787.3,2.6404]
[1733329721592,0.61939227,3788.3,3787.3,2.6404]
[1733329721593,1.5414,3788.2,3787.3,2.6404]
[1733329721798,0.52529028,3787.8,3786.8,3.0]
[1733329722108,0.52529028,3787.8,3787.7,2.64012]
[1733329722644,1.5414,3788.2,3787.8,2.64004]
[1733329722951,2.42083135,3788.2,3787.9,2.63992]
[1733329723113,2.42083135,3788.2,3787.6,2.64016]
[1733329723308,2.42083135,3788.2,3788.0,2.63985]
[1733329723702,1.5414,3788.2,3788.1,2.63984]
[1733329724215,6.66,3788.5,3788.1,5.63984]
[1733329724410,6.66,3788.5,3788.4,2.63963]
[1733329724907,7.17937627,3788.5,3788.4,2.63963]
[1733329725094,6.66,3788.5,3788.4,2.63963]
[1733329725291,6.66,3788.5,3788.4,5.63963]
[1733329725496,1.38104,3788.5,3788.4,5.63963]
[1733329725722,0.06133,3788.5,3788.4,5.63963]
[1733329726237,9.99,3788.7,3788.6,5.63949]
[1733329726238,3.95198,3788.7,3788.6,5.63949]
[1733329726446,3.95198,3788.7,3788.6,7.30459]
[1733329727038,2.63254,3788.7,3788.6,7.30459]
[1733329727246,6.93e-06,3789.5,3789.4,2.63894]
[1733329727397,6.93e-06,3789.5,3789.4,5.63894]
[1733329730131,30.37195648,3791.5,3789.4,5.63894]
[1733329730132,0.69169693,3790.2,3789.8,2.63866]
[1733329730337,0.69169693,3790.2,3790.1,2.63845]
[1733329730543,0.69169693,3790.2,3790.1,5.63845]
[1733329731092,6.93e-06,3790.2,3790.1,5.63845]
[1733329731638,0.69176693,3790.4,3790.2,3.0]
[1733329731824,6.93e-06,3790.4,3790.3,2.63831]
[1733329732048,6.93e-06,3790.4,3790.3,5.63831]
[1733329732717,6.93e-06,3790.7,3790.6,2.6381]
[1733329732913,6.93e-06,3790.7,3790.6,5.6381]
[1733329736054,30.72847253,3791.3,3791.2,5.63768]
[1733329736257,22.11165662,3791.3,3791.2,5.63768]
[1733329737157,19.47417662,3791.3,3791.2,5.63768]
[1733329737358,18.15543662,3791.3,3791.2,5.63768]
[1733329737574,18.15543662,3791.3,3791.2,7.26168]
[1733329738181,12.88047662,3791.3,3791.2,7.26168]
[1733329738365,11.33475961,3791.3,3791.2,8.11168]
[1733329738577,11.33475961,3791.3,3791.2,8.44827871]
[1733329738942,11.33475961,3791.3,3791.2,32.76026216]
[1733329738943,5.45378267,3791.3,3791.2,32.76026216]
[1733329739282,17.96532107,3791.5,3791.4,7.37494]
[1733329739501,17.07792107,3791.5,3791.4,17.01088171]
[1733329739641,13.37569883,3791.5,3791.4,15.08756171]
[1733329739843,9.52132023,3791.5,3791.4,15.4570152]
[1733329740046,0.13103427,3793.2,3792.8,2.63653]
[1733329740394,3.33,3793.3,3793.2,3.0]
[1733329740395,2.14299427,3793.3,3793.2,3.0]
[1733329740742,2.14299427,3793.3,3793.2,5.63629]
[1733329740942,2.14299427,3793.3,3793.2,2.63629]
[1733329741170,4.27e-06,3793.3,3793.2,2.63629]
[1733329742513,0.3330047,3793.3,3792.9,2.63645]
[1733329742691,1.58777875,3793.2,3792.4,2.6368]